fUSD/lending_fUSD_20260406
["ID","MTS","AMOUNT","RATE_DAILY","PERIOD"]
[419920430,1775507448700,-272.719027,0.00015363,2]
[419920431,1775507448709,-390.85991,0.00015363,2]
[419920432,1775507448719,-272.719027,0.00015363,2]
[419920433,1775507448728,-390.85991,0.00015363,2]
[419920434,1775507448738,-390.85991,0.00015363,2]
[419920435,1775507448747,-829.030432,0.00015363,2]
[419920436,1775507448757,-829.030432,0.00015363,2]
[419920437,1775507448766,-546.258356,0.00015363,2]
[419920438,1775507448776,-829.030432,0.00015363,2]
[419920440,1775507448785,-546.258356,0.00015363,2]
[419920442,1775507448794,-829.030432,0.00015363,2]
[419920444,1775507448804,-546.258356,0.00015363,2]
[419920445,1775507448813,-546.258356,0.00015363,2]
[419920446,1775507448822,-151.0,0.00015363,2]
[419920447,1775507448831,-151.0,0.00015363,2]
[419920448,1775507448840,-176.274886,0.00015363,2]
[419920449,1775507448849,-313.458578,0.00015363,2]
[419920450,1775507448858,-313.458578,0.00015363,2]
[419920451,1775507448868,-313.458578,0.00015363,2]
[419920452,1775507448877,-313.458578,0.00015363,2]
[419920453,1775507448886,-151.0,0.00015363,2]
[419920454,1775507448896,-1715.941805,0.00015363,2]
[419920455,1775507448906,-1715.941805,0.00015363,2]
[419920456,1775507448915,-1715.941805,0.00015363,2]
[419920457,1775507448924,-151.0,0.00015363,2]
[419920458,1775507448934,-151.0,0.00015363,2]
[419920459,1775507448943,-151.0,0.00015363,2]
[419920460,1775507448952,-1715.941805,0.00015363,2]
[419920461,1775507448962,-151.0,0.00015363,2]
[419920462,1775507448972,-488.291621,0.00015363,2]
[419920463,1775507448981,-488.291621,0.00015363,2]
[419920464,1775507448991,-151.0,0.00015363,2]
[419920465,1775507449000,-151.0,0.00015363,2]
[419920466,1775507449010,-232.534013,0.00015363,2]
[419920467,1775507449019,-488.291621,0.00015363,2]
[419920468,1775507449028,-151.0,0.00015363,2]
[419920469,1775507449037,-232.534013,0.00015363,2]
[419920470,1775507449046,-488.291621,0.00015363,2]
[419920471,1775507449056,-151.0,0.00015363,2]
[419920472,1775507449065,-232.534013,0.00015363,2]
[419920473,1775507449074,-232.534013,0.00015363,2]
[419920474,1775507449083,-151.0,0.00015363,2]
[419920475,1775507449093,-151.0,0.00015363,2]
[419920477,1775507449102,-151.0,0.00015363,2]
[419920478,1775507449111,-151.0,0.00015363,2]
[419920480,1775507449120,-165.599643,0.00015363,2]
[419920481,1775507449129,-151.0,0.00015363,2]
[419920482,1775507449138,-151.0,0.00015363,2]
[419920483,1775507449147,-151.0,0.00015363,2]
[419920484,1775507449157,-585.190594,0.00015363,2]
[419920485,1775507449166,-224.223956,0.00015363,2]
[419920486,1775507449175,-585.190594,0.00015363,2]
[419920487,1775507449184,-585.190594,0.00015363,2]
[419920488,1775507449193,-585.190594,0.00015363,2]
[419920489,1775507449201,-190.410851,0.00015363,2]
[419920490,1775507449210,-190.410851,0.00015363,2]
[419920491,1775507449220,-190.410851,0.00015363,2]
[419920492,1775507449229,-272.199966,0.00015363,2]
[419920493,1775507449238,-190.410851,0.00015363,2]
[419920494,1775507449247,-272.199966,0.00015363,2]
[419920495,1775507449256,-272.199966,0.00015363,2]
[419920496,1775507449266,-272.199966,0.00015363,2]
[419920497,1775507449275,-151.0,0.00015363,2]
[419920498,1775507449284,-416.609906,0.00015363,2]
[419920499,1775507449293,-534.952328,0.00015363,2]
[419920500,1775507449303,-151.0,0.00015363,2]
[419920501,1775507449312,-416.609906,0.00015363,2]
[419920502,1775507449321,-534.952328,0.00015363,2]
[419920503,1775507449330,-416.609906,0.00015363,2]
[419920504,1775507449339,-534.952328,0.00015363,2]
[419920505,1775507449348,-416.609906,0.00015363,2]
[419920506,1775507449357,-534.952328,0.00015363,2]
[419920507,1775507449367,-500.0,0.00015364,2]
[419920508,1775507449376,-1400.0,0.00015364,2]
[419920509,1775507449385,-1400.0,0.00015364,2]
[419920510,1775507449399,-1400.0,0.00015364,2]
[419920511,1775507449408,-1400.0,0.00015364,2]
[419920512,1775507449418,-1400.0,0.00015364,2]
[419920513,1775507449427,-1400.0,0.00015364,2]
[419920514,1775507449436,-1400.0,0.00015364,2]
[419920515,1775507449445,-1400.0,0.00015364,2]
[419920516,1775507449454,-1400.0,0.00015364,2]
[419920517,1775507449463,-1374.0,0.00015364,2]
[419920518,1775507449473,-1000.0,0.00015368,2]
[419920519,1775507449482,-1000.0,0.00015368,2]
[419920520,1775507449491,-500.84806746,0.00015368,2]
[419920521,1775507449500,-962.31706574,0.0001537,2]
[419920522,1775507449509,-500.0,0.00015371,2]
[419920523,1775507449519,-334.02643621,0.00015371,2]
[419920524,1775507449528,-500.0,0.00015371,2]
[419920525,1775507449536,-500.0,0.00015371,2]
[419920526,1775507449546,-500.0,0.00015371,2]
[419920527,1775507449558,-150.0,0.00015379,2]
[419920528,1775507449567,-2000.0,0.000154,2]
[419920529,1775507449576,-2142.0,0.00015406,2]
[419920530,1775507449586,-1064.0,0.00015415,2]
[419920531,1775507449595,-1195.0,0.00015415,2]
[419920532,1775507449604,-500.0,0.00015419,2]
[419920533,1775507449613,-2142.0,0.00015438,2]
[419920534,1775507449623,-2142.0,0.0001545,2]
[419920535,1775507449633,-1300.0,0.00015452,2]
[419920536,1775507449642,-3000.0,0.00015452,2]
[419920537,1775507449651,-962.31706574,0.00015452,2]
[419920538,1775507449660,-189.00582331,0.00015469,2]
[419920539,1775507449669,-616.0,0.00015469,2]
[419920540,1775507449678,-2211.86,0.00015471,2]
[419920541,1775507449688,-500.0,0.00015474,2]
[419920542,1775507449696,-869.63,0.00015475,2]
[419920543,1775507449705,-1000.0,0.00015483,2]
[419920544,1775507449715,-1000.0,0.000155,2]
[419920545,1775507449725,-19000.0,0.000155,5]
[419920546,1775507449734,-1000.0,0.00015505,2]
[419920547,1775507449743,-962.31706574,0.00015507,2]
[419920548,1775507449752,-2142.0,0.00015512,2]
[419920549,1775507449761,-500.0,0.00015529,2]
[419920550,1775507449771,-152.0,0.00015558,18]
[419920551,1775507449780,-962.31706574,0.00015562,2]
[419920552,1775507449789,-150.0,0.00015566,2]
[419920553,1775507449797,-500.0,0.00015584,2]
[419920554,1775507449806,-3800.0,0.000156,5]
[419920555,1775507449815,-2629.0,0.000156,2]
[419920556,1775507449824,-1000.0,0.00015616,2]
[419920557,1775507449833,-962.31706574,0.00015616,2]
[419920558,1775507449842,-1600.0,0.00015634,2]
[419920559,1775507449851,-500.0,0.00015639,2]
[419920560,1775507449861,-205.16933,0.00015669,7]
[419920561,1775507449870,-162.0,0.0001568,2]
[419920562,1775507449879,-2811.0,0.0001568,2]
[419920563,1775507449888,-162.0,0.0001568,2]
[419920564,1775507449898,-1573.0,0.0001568,2]
[419920565,1775507449907,-1148.24816306,0.0001568,2]
[419920566,1775507449916,-1025.32185004,0.0001568,2]
[419920567,1775507449925,-1112.00701183,0.0001568,2]
[419920568,1775507449934,-891.64566393,0.0001568,2]
[419920569,1775507449943,-500.0,0.00015694,2]
[419920570,1775507449952,-962.31706574,0.00015699,2]
[419920571,1775507449961,-3800.0,0.000157,5]
[419920572,1775507449971,-2142.0,0.00015735,2]
[419920573,1775507449980,-350.0,0.00015736,2]
[419920574,1775507449989,-200.0,0.00015747,2]
[419920575,1775507449999,-1428.38747117,0.00015747,2]
[419920576,1775507450008,-478.71648202,0.00015747,2]
[419920577,1775507450018,-181.08010149,0.00015747,2]
[419920578,1775507450028,-500.0,0.00015749,2]
[419920579,1775507450038,-562.5,0.00015753,2]
[419920580,1775507450048,-500.0,0.00015753,2]
[419920581,1775507450058,-500.0,0.00015753,2]
[419920582,1775507450067,-500.0,0.00015753,2]
[419920583,1775507450077,-962.31706574,0.00015753,2]
[419920584,1775507450086,-152.0,0.00015779,19]
[419920585,1775507450095,-326.683348,0.00015785,7]
[419920586,1775507450105,-304.11380504,0.00015799,2]
[419920587,1775507450390,-3800.0,0.000158,5]
[419920588,1775507450430,-2000.0,0.000158,2]
[419920589,1775507450440,-771.95625003,0.000158,2]
[419920590,1775507450449,-500.0,0.00015804,2]
[419920591,1775507450459,-562.5,0.00015808,2]
[419920592,1775507450468,-562.5,0.00015808,2]
[419920593,1775507450477,-500.0,0.00015808,2]
[419920594,1775507450487,-500.0,0.00015808,2]
[419920595,1775507450496,-500.0,0.00015808,2]
[419920596,1775507450505,-186.12488173,0.00015808,2]
[419920597,1775507450514,-500.0,0.00015808,2]
[419920598,1775507450523,-500.0,0.00015808,2]
[419920599,1775507450533,-566.37,0.00015808,2]
[419920600,1775507450542,-500.0,0.00015808,2]
[419920601,1775507450551,-489.61287223,0.00015808,2]
[419920602,1775507450560,-962.31706574,0.00015808,2]
[419920603,1775507450570,-3054.6611754,0.00015809,2]
[419920604,1775507450579,-500658.5670644,0.00015809,2]
[419920605,1775507450588,-20082.704436,0.00015809,2]
[419920606,1775507450598,-19759.4408387,0.00015809,2]
[419920607,1775507450607,-150.4763656,0.00015809,2]
[419920608,1775507450616,-151.0,0.00015809,2]
[419920609,1775507450626,-300.261063,0.00015809,2]
[419920610,1775507450635,-300.261063,0.00015809,2]
[419920611,1775507450644,-300.261063,0.00015809,2]
[419920612,1775507450654,-300.261063,0.00015809,2]
[419920613,1775507450663,-151.0,0.00015809,2]
[419920614,1775507450673,-268.8,0.00015809,2]
[419920615,1775507450682,-151.0,0.00015809,2]
[419920616,1775507450691,-151.0,0.00015809,2]
[419920617,1775507450700,-268.8,0.00015809,2]
[419920618,1775507450710,-151.0,0.00015809,2]
[419920619,1775507450719,-268.8,0.00015809,2]
[419920620,1775507450728,-151.0,0.00015809,2]
[419920621,1775507450738,-268.8,0.00015809,2]
[419920622,1775507450747,-151.0,0.00015809,2]
[419920623,1775507450756,-300.263288,0.00015809,2]
[419920624,1775507450765,-151.0,0.00015809,2]
[419920625,1775507450774,-162.535463,0.00015809,2]
[419920626,1775507450784,-3555.9301428,0.00015809,2]
[419920627,1775507450793,-162.535463,0.00015809,2]
[419920628,1775507450803,-151.0,0.00015809,2]
[419920629,1775507450812,-162.535463,0.00015809,2]
[419920630,1775507450821,-151.0,0.00015809,2]
[419920631,1775507450830,-162.535463,0.00015809,2]
[419920632,1775507450839,-151.0,0.00015809,2]
[419920633,1775507450848,-151.0,0.00015809,2]
[419920634,1775507450857,-151.0,0.00015809,2]
[419920635,1775507450866,-151.0,0.00015809,2]
[419920636,1775507450875,-151.0,0.00015809,2]
[419920637,1775507450885,-173.136958,0.00015809,2]
[419920638,1775507450894,-173.136958,0.00015809,2]
[419920639,1775507450903,-173.136958,0.00015809,2]
[419920640,1775507450912,-151.0,0.00015809,2]
[419920641,1775507450921,-173.136958,0.00015809,2]
[419920642,1775507450930,-225.006569,0.00015809,2]
[419920643,1775507450939,-26465.6700853,0.00015809,2]
[419920644,1775507450948,-272.719027,0.00015809,2]
[419920645,1775507450957,-272.719027,0.00015809,2]
[419920646,1775507450967,-390.85991,0.00015809,2]
[419920647,1775507450976,-272.719027,0.00015809,2]
[419920648,1775507450985,-390.85991,0.00015809,2]
[419920649,1775507450995,-272.719027,0.00015809,2]
[419920650,1775507451004,-390.85991,0.00015809,2]
[419920651,1775507451013,-390.85991,0.00015809,2]
[419920652,1775507451023,-829.030432,0.00015809,2]
[419920653,1775507451032,-151.0,0.00015809,2]
[419920654,1775507451042,-151.0,0.00015809,2]
[419920655,1775507451051,-151.0,0.00015809,2]
[419920656,1775507451060,-829.030432,0.00015809,2]
[419920657,1775507451070,-151.0,0.00015809,2]
[419920658,1775507451080,-151.0,0.00015809,2]
[419920659,1775507451089,-546.258356,0.00015809,2]
[419920660,1775507451108,-151.0,0.00015809,2]
[419920661,1775507451120,-151.0,0.00015809,2]
[419920662,1775507451130,-829.030432,0.00015809,2]
[419920663,1775507451140,-151.0,0.00015809,2]
[419920664,1775507451150,-546.258356,0.00015809,2]
[419920665,1775507451160,-151.0,0.00015809,2]
[419920666,1775507451170,-151.0,0.00015809,2]
[419920667,1775507451180,-829.030432,0.00015809,2]
[419920668,1775507451190,-546.258356,0.00015809,2]
[419920669,1775507451200,-204.671139,0.00015809,2]
[419920670,1775507451211,-151.0,0.00015809,2]
[419920671,1775507451221,-546.258356,0.00015809,2]
[419920672,1775507451230,-204.671139,0.00015809,2]
[419920673,1775507451240,-151.0,0.00015809,2]
[419920674,1775507451250,-204.671139,0.00015809,2]
[419920675,1775507451260,-151.0,0.00015809,2]
[419920676,1775507451270,-204.671139,0.00015809,2]
[419920677,1775507451280,-151.0,0.00015809,2]
[419920678,1775507451291,-2180.552252,0.00015809,2]
[419920679,1775507451301,-2180.552252,0.00015809,2]
[419920680,1775507451311,-151.0,0.00015809,2]
[419920681,1775507451321,-2180.552252,0.00015809,2]
[419920682,1775507451330,-151.0,0.00015809,2]
[419920683,1775507451340,-176.663627,0.00015809,2]
[419920684,1775507451350,-2180.552252,0.00015809,2]
[419920685,1775507451360,-151.0,0.00015809,2]
[419920686,1775507451369,-176.663627,0.00015809,2]
[419920687,1775507451379,-151.0,0.00015809,2]
[419920688,1775507451389,-176.663627,0.00015809,2]
[419920689,1775507451399,-256.89532,0.00015809,2]
[419920690,1775507451408,-176.663627,0.00015809,2]
[419920691,1775507451419,-313.458578,0.00015809,2]
[419920692,1775507451428,-151.0,0.00015809,2]
[419920693,1775507451438,-313.458578,0.00015809,2]
[419920694,1775507451448,-151.0,0.00015809,2]
[419920695,1775507451457,-313.458578,0.00015809,2]
[419920696,1775507451467,-313.458578,0.00015809,2]
[419920697,1775507451476,-151.0,0.00015809,2]
[419920698,1775507451486,-151.0,0.00015809,2]
[419920699,1775507451496,-151.0,0.00015809,2]
[419920700,1775507451506,-151.0,0.00015809,2]
[419920701,1775507451515,-151.0,0.00015809,2]
[419920702,1775507451524,-151.0,0.00015809,2]
[419920703,1775507451534,-151.0,0.00015809,2]
[419920704,1775507451544,-151.0,0.00015809,2]
[419920705,1775507451554,-161.475832,0.00015809,2]
[419920706,1775507451564,-186.926522,0.00015809,2]
[419920707,1775507451573,-151.0,0.00015809,2]
[419920708,1775507451583,-87292.8272148,0.00015809,2]
[419920709,1775507451592,-220.353408,0.00015809,2]
[419920710,1775507451607,-151.0,0.00015809,2]
[419920711,1775507451617,-151.0,0.00015809,2]
[419920712,1775507451627,-151.0,0.00015809,2]
[419920713,1775507451638,-151.0,0.00015809,2]
[419920714,1775507451648,-151.0,0.00015809,2]
[419920715,1775507451659,-151.0,0.00015809,2]
[419920716,1775507451669,-151.0,0.00015809,2]
[419920717,1775507451680,-151.0,0.00015809,2]
[419920718,1775507451690,-241.30527068,0.00015809,2]
[419920719,1775507451701,-151.0,0.00015809,2]
[419920720,1775507451711,-151.0,0.00015809,2]
[419920721,1775507451721,-151.0,0.00015809,2]
[419920722,1775507451732,-151.0,0.00015809,2]
[419920723,1775507451742,-151.0,0.00015809,2]
[419920724,1775507451752,-151.0,0.00015809,2]
[419920725,1775507451762,-151.0,0.00015809,2]
[419920726,1775507451772,-151.0,0.00015809,2]
[419920727,1775507451783,-151.0,0.00015809,2]
[419920728,1775507451793,-151.0,0.00015809,2]
[419920729,1775507451803,-245.032084,0.00015809,2]
[419920730,1775507451814,-151.0,0.00015809,2]
[419920731,1775507451824,-151.0,0.00015809,2]
[419920732,1775507451834,-151.0,0.00015809,2]
[419920733,1775507451845,-151.0,0.00015809,2]
[419920734,1775507451855,-151.0,0.00015809,2]
[419920735,1775507451865,-151.0,0.00015809,2]
[419920736,1775507451875,-151.0,0.00015809,2]
[419920737,1775507451884,-151.0,0.00015809,2]
[419920738,1775507451895,-151.0,0.00015809,2]
[419920739,1775507451905,-222.476936,0.00015809,2]
[419920740,1775507451914,-151.0,0.00015809,2]
[419920741,1775507451925,-155.746075,0.00015809,2]
[419920742,1775507451935,-151.0,0.00015809,2]
[419920743,1775507451945,-151.0,0.00015809,2]
[419920744,1775507451956,-151.0,0.00015809,2]
[419920745,1775507451966,-524.751898,0.00015809,2]
[419920746,1775507451977,-254.207423,0.00015809,2]
[419920747,1775507451988,-524.751898,0.00015809,2]
[419920748,1775507451998,-254.207423,0.00015809,2]
[419920749,1775507452009,-524.751898,0.00015809,2]
[419920750,1775507452020,-254.207423,0.00015809,2]
[419920751,1775507452031,-254.207423,0.00015809,2]
[419920752,1775507452042,-524.751898,0.00015809,2]
[419920753,1775507452053,-1715.941805,0.00015809,2]
[419920754,1775507452064,-1715.941805,0.00015809,2]
[419920755,1775507452074,-1715.941805,0.00015809,2]
[419920756,1775507452084,-151.0,0.00015809,2]
[419920757,1775507452095,-151.0,0.00015809,2]
[419920758,1775507452110,-1715.941805,0.00015809,2]
[419920759,1775507452122,-366.764517,0.00015809,2]
[419920760,1775507452132,-222.045865,0.00015809,2]
[419920761,1775507452143,-488.291621,0.00015809,2]
[419920762,1775507452153,-151.0,0.00015809,2]
[419920763,1775507452164,-366.764517,0.00015809,2]
[419920764,1775507452175,-488.291621,0.00015809,2]
[419920765,1775507452186,-151.0,0.00015809,2]
[419920766,1775507452197,-151.0,0.00015809,2]
[419920767,1775507452209,-366.764517,0.00015809,2]
[419920768,1775507452219,-232.534013,0.00015809,2]
[419920769,1775507452230,-488.291621,0.00015809,2]
[419920770,1775507452241,-232.534013,0.00015809,2]
[419920771,1775507452251,-366.764517,0.00015809,2]
[419920772,1775507452262,-488.291621,0.00015809,2]
[419920773,1775507452273,-151.0,0.00015809,2]
[419920774,1775507452284,-232.534013,0.00015809,2]
[419920775,1775507452295,-232.534013,0.00015809,2]
[419920776,1775507452306,-151.0,0.00015809,2]
[419920777,1775507452316,-151.0,0.00015809,2]
[419920778,1775507452327,-151.0,0.00015809,2]
[419920779,1775507452338,-151.0,0.00015809,2]
[419920780,1775507452348,-151.0,0.00015809,2]
[419920781,1775507452358,-165.831226,0.00015809,2]
[419920782,1775507452369,-151.0,0.00015809,2]
[419920783,1775507452379,-151.0,0.00015809,2]
[419920784,1775507452390,-585.190594,0.00015809,2]
[419920785,1775507452400,-151.0,0.00015809,2]
[419920786,1775507452411,-585.190594,0.00015809,2]
[419920787,1775507452422,-585.190594,0.00015809,2]
[419920788,1775507452432,-585.190594,0.00015809,2]
[419920789,1775507452442,-190.410851,0.00015809,2]
[419920790,1775507452453,-190.410851,0.00015809,2]
[419920791,1775507452463,-190.410851,0.00015809,2]
[419920792,1775507452473,-272.199966,0.00015809,2]
[419920793,1775507452483,-190.410851,0.00015809,2]
[419920794,1775507452494,-272.199966,0.00015809,2]
[419920795,1775507452505,-272.199966,0.00015809,2]
[419920796,1775507452516,-272.199966,0.00015809,2]
[419920797,1775507452526,-416.609906,0.00015809,2]
[419920798,1775507452536,-151.0,0.00015809,2]
[419920799,1775507452547,-534.952328,0.00015809,2]
[419920800,1775507452557,-151.0,0.00015809,2]
[419920801,1775507452567,-416.609906,0.00015809,2]
[419920802,1775507452577,-151.0,0.00015809,2]
[419920803,1775507452588,-534.952328,0.00015809,2]
[419920804,1775507452598,-151.0,0.00015809,2]
[419920805,1775507452611,-416.609906,0.00015809,2]
[419920806,1775507452622,-534.952328,0.00015809,2]
[419920807,1775507452632,-553.482395,0.00015809,2]
[419920808,1775507452642,-151.0,0.00015809,2]
[419920809,1775507452652,-151.0,0.00015809,2]
[419920810,1775507452662,-416.609906,0.00015809,2]
[419920811,1775507452672,-534.952328,0.00015809,2]
[419920812,1775507452682,-553.482395,0.00015809,2]
[419920813,1775507452692,-151.0,0.00015809,2]
[419920814,1775507452702,-553.482395,0.00015809,2]
[419920815,1775507452712,-151.0,0.00015809,2]
[419920816,1775507452722,-553.482395,0.00015809,2]
[419920817,1775507452733,-151.0,0.00015809,2]
[419920818,1775507452743,-151.0,0.00015809,2]
[419920819,1775507452753,-151.0,0.00015809,2]
[419920820,1775507452764,-151.0,0.00015809,2]
[419920821,1775507452773,-151.0,0.00015809,2]
[419920822,1775507452784,-205.653364,0.00015809,2]
[419920823,1775507452793,-151.0,0.00015809,2]
[419920824,1775507452804,-766.93164,0.00015809,2]
[419920825,1775507452814,-766.93164,0.00015809,2]
[419920826,1775507453074,-766.93164,0.00015809,2]
[419920827,1775507453085,-151.0,0.00015809,2]
[419920828,1775507453094,-766.93164,0.00015809,2]
[419920829,1775507453104,-151.0,0.00015809,2]
[419920830,1775507453113,-157.023332,0.00015809,2]
[419920831,1775507453123,-151.0,0.00015809,2]
[419920832,1775507453132,-658.929163,0.00015809,2]
[419920833,1775507453142,-151.0,0.00015809,2]
[419920834,1775507453151,-151.0,0.00015809,2]
[419920835,1775507453160,-151.0,0.00015809,2]
[419920836,1775507453170,-658.929163,0.00015809,2]
[419920837,1775507453180,-151.0,0.00015809,2]
[419920838,1775507453189,-658.929163,0.00015809,2]
[419920839,1775507453207,-151.0,0.00015809,2]
[419920840,1775507453219,-658.929163,0.00015809,2]
[419920841,1775507453229,-151.0,0.00015809,2]
[419920842,1775507453238,-276.32838,0.00015809,2]
[419920843,1775507453248,-729.469798,0.00015809,2]
[419920844,1775507453258,-276.32838,0.00015809,2]
[419920845,1775507453268,-729.469798,0.00015809,2]
[419920846,1775507453277,-276.32838,0.00015809,2]
[419920847,1775507453287,-151.0,0.00015809,2]
[419920848,1775507453296,-729.469798,0.00015809,2]
[419920849,1775507453305,-276.32838,0.00015809,2]
[419920850,1775507453315,-151.0,0.00015809,2]
[419920851,1775507453326,-387.488501,0.00015809,2]
[419920852,1775507453335,-729.469798,0.00015809,2]
[419920853,1775507453344,-520.378138,0.00015809,2]
[419920854,1775507453354,-387.488501,0.00015809,2]
[419920855,1775507453363,-520.378138,0.00015809,2]
[419920856,1775507453373,-225.159939,0.00015809,2]
[419920857,1775507453382,-387.488501,0.00015809,2]
[419920858,1775507453392,-151.0,0.00015809,2]
[419920859,1775507453401,-151.0,0.00015809,2]
[419920860,1775507453411,-151.0,0.00015809,2]
[419920861,1775507453420,-520.378138,0.00015809,2]
[419920862,1775507453430,-225.159939,0.00015809,2]
[419920863,1775507453439,-387.488501,0.00015809,2]
[419920864,1775507453448,-151.0,0.00015809,2]
[419920865,1775507453457,-151.0,0.00015809,2]
[419920866,1775507453467,-225.159939,0.00015809,2]
[419920867,1775507453477,-520.378138,0.00015809,2]
[419920868,1775507453486,-151.0,0.00015809,2]
[419920869,1775507453496,-151.0,0.00015809,2]
[419920870,1775507453505,-225.159939,0.00015809,2]
[419920871,1775507453515,-151.0,0.00015809,2]
[419920872,1775507453524,-151.0,0.00015809,2]
[419920873,1775507453534,-151.0,0.00015809,2]
[419920874,1775507453544,-151.0,0.00015809,2]
[419920875,1775507453553,-1038.983212,0.00015809,2]
[419920876,1775507453563,-1038.983212,0.00015809,2]
[419920877,1775507453572,-151.0,0.00015809,2]
[419920878,1775507453582,-1038.983212,0.00015809,2]
[419920879,1775507453592,-1038.983212,0.00015809,2]
[419920880,1775507453602,-151.0,0.00015809,2]
[419920881,1775507453611,-151.0,0.00015809,2]
[419920882,1775507453620,-151.0,0.00015809,2]
[419920883,1775507453630,-151.0,0.00015809,2]
[419920884,1775507453639,-151.0,0.00015809,2]
[419920885,1775507453649,-151.0,0.00015809,2]
[419920886,1775507453659,-151.0,0.00015809,2]
[419920887,1775507453668,-310.015346,0.00015809,2]
[419920888,1775507453678,-310.015346,0.00015809,2]
[419920889,1775507453688,-234.889848,0.00015809,2]
[419920890,1775507453698,-310.015346,0.00015809,2]
[419920891,1775507453708,-234.889848,0.00015809,2]
[419920892,1775507453723,-234.889848,0.00015809,2]
[419920893,1775507453734,-234.889848,0.00015809,2]
[419920894,1775507453744,-151.0,0.00015809,2]
[419920895,1775507453754,-1202.256682,0.00015809,2]
[419920896,1775507453764,-151.0,0.00015809,2]
[419920897,1775507453774,-1202.256682,0.00015809,2]
[419920898,1775507453784,-151.0,0.00015809,2]
[419920899,1775507453794,-310.015346,0.00015809,2]
[419920900,1775507453804,-151.0,0.00015809,2]
[419920901,1775507453814,-586.836056,0.00015809,2]
[419920902,1775507453824,-1202.256682,0.00015809,2]
[419920903,1775507453833,-151.0,0.00015809,2]
[419920904,1775507453843,-411.041412,0.00015809,2]
[419920905,1775507453853,-454.96662,0.00015809,2]
[419920906,1775507453862,-402.8195,0.00015809,2]
[419920907,1775507453872,-586.836056,0.00015809,2]
[419920908,1775507453882,-1202.256682,0.00015809,2]
[419920909,1775507453892,-411.041412,0.00015809,2]
[419920910,1775507453901,-156.226732,0.00015809,2]
[419920911,1775507453911,-454.96662,0.00015809,2]
[419920912,1775507453920,-586.836056,0.00015809,2]
[419920913,1775507453930,-261.551929,0.00015809,2]
[419920914,1775507453940,-411.041412,0.00015809,2]
[419920915,1775507453949,-151.0,0.00015809,2]
[419920916,1775507453959,-402.8195,0.00015809,2]
[419920917,1775507453969,-454.96662,0.00015809,2]
[419920918,1775507453978,-764.02772,0.00015809,2]
[419920919,1775507453988,-586.836056,0.00015809,2]
[419920920,1775507453997,-261.551929,0.00015809,2]
[419920921,1775507454007,-151.0,0.00015809,2]
[419920922,1775507454016,-411.041412,0.00015809,2]
[419920923,1775507454026,-402.8195,0.00015809,2]
[419920924,1775507454036,-454.96662,0.00015809,2]
[419920925,1775507454046,-764.02772,0.00015809,2]
[419920926,1775507454056,-261.551929,0.00015809,2]
[419920927,1775507454065,-151.0,0.00015809,2]
[419920928,1775507454075,-402.8195,0.00015809,2]
[419920929,1775507454085,-764.02772,0.00015809,2]
[419920930,1775507454094,-261.551929,0.00015809,2]
[419920931,1775507454104,-500.0,0.00015814,2]
[419920932,1775507454113,-1252.0,0.00015814,2]
[419920933,1775507454123,-1000.0,0.00015827,2]
[419920934,1775507454133,-2000.0,0.0001584,2]